{"text_format":"1","workbook":"xlsx","n_sheets":1,"sheets":["Relatório Liquidação"],"not_rendered":{"charts":0,"images":1,"macros":0,"external_links":0,"defined_names":4,"comments":0,"pivot_tables":0},"unopened":[],"bounds":{"document_bytes":16777216,"sheet_cells":100000,"rows_first":2000,"rows_last":500,"rows_between":2000,"halvings":0,"cell_chars":16384,"cell_head_chars":4096},"cells_cut":0,"cells_raw":0,"read":"whole","date_system":"1900"}

{"sheet":"Relatório Liquidação","index":0,"n_rows":80,"n_cols":25,"rows_kept":80,"cut":false,"hidden":false,"merged":[]}
[null,null,null,null,null,null,null,null,null,null,null,null,null,null,null,null,null,null,null,null,null,null,null,-4.1836756281554699E-11]
[null,null,null,null,"CRI União do Lago - Mapa de Liquidação"]
[]
[]
[]
[]
[null,"Natureza do Pagamento","Série","Data ","PU\nLiquidação","Quantidade","Lançamento","Razão Social","CNPJ","Número","Banco","Agência","Conta","ISS","Valor do Serviço","Gross-Up","Valor Bruto NF","Retenção NF","Retenção","Valor","Observação"]
[null,"Integralização",499,"2021-01-19",1000,15050,"Integralização",null,null,null,null,null,null,null,null,null,null,null,null,{"$f":"E8*F8","v":15050000}]
[null,"Integralização",500,"2021-01-19",1000,6450,"Integralização",null,null,null,null,null,null,null,null,null,null,null,null,{"$f":"E9*F9","v":6450000}]
[null,"Integralização",0,"2021-01-19",0,0,"Integralização",null,null,null,null,null,null,null,null,null,null,null,null,0]
[null,"Integralização",0,"2021-01-19",0,0,"Integralização",null,null,null,null,null,null,null,null,null,null,null,null,0]
[null,"Integralização",0,"2021-01-19",0,0,"Integralização",null,null,null,null,null,null,null,null,null,null,null,null,0]
[null,"Integralização",0,"2021-01-19",0,0,"Integralização",null,null,null,null,null,null,null,null,null,null,null,null,0]
[null,"Integralização","Total Dia",null,null,null,"Total Integralização",null,null,null,null,null,null,null,null,null,null,null,null,{"$f":"SUM(T8:T13)","v":21500000}]
[null,"Transferência",null,null,null,null,"Fee Estruturação","TForte Participação Ltda","21.567.223/0001-05",341,"Itaú Unibanco S.A.","0869-8","12663-1","N/A",215000,0.1115,{"$f":"O15/(1-P15)","v":241980.86662915026},6.1499999999999999E-2,{"$f":"R15*Q15","v":14881.823297692741},{"$f":"Q15*(1-R15)","v":227099.04333145751}]
[null,"Transferência",null,null,null,null,"Taxa de Sucesso","TForte Participação Ltda","21.567.223/0001-05",341,"Itaú Unibanco S.A.","0869-8","12663-1","N/A",129000,0.1115,145188.51997749016,6.1499999999999999E-2,{"$f":"R16*Q16","v":8929.093978615645},136259.4259988745]
[null,"Transferência",null,null,null,null,"Comissão Firme","TForte Participação Ltda","21.567.223/0001-05",341,"Itaú Unibanco S.A.","0869-8","12663-1","N/A",0,0.1115,0,6.1499999999999999E-2,{"$f":"+R17*Q17","v":0},0]
[null,"Transferência",null,null,null,null,"Originador",0,0,{"$error":"#N/A"},{"$error":"#N/A"},0,0,"",0,0,0,0,0,0]
[null,"Aguardar Transferência",null,null,null,null,"Advogados - Terceiros","","","","","","","",0,0,0,0,0,0]
[null,"Aguardar Transferência",null,null,null,null,"Despachante","Duudocs serviços administrativos Ltda. ","32.437.359/0001-17",341,"Itaú Unibanco S.A.",350,"32511-4","N/A",4550,0,4550,0,0,4550]
[null,"Aguardar Transferência",null,null,null,null,"Advogados - Assessoria","MANASSERO E CAMPELLO SOCIEDADE DE ADVOGADOS","19.010.359/0001-78",null,null,null,null,null,50500,0,50500,0,0,50500]
[null,"Aguardar Transferência",null,null,null,null,"Coordenador Líder","TERRA INVESTIMENTOS DTVM LTDA.","03.751.794/0001-13",237,"Banco Bradesco S.A.",560,"0156021-2","N/A",14687.5,9.6500000000000002E-2,16256.22578859989,0,0,16256.22578859989]
[null,"Aguardar Transferência",null,null,null,null,"Engenharia","HARCA ENGENHARIA EIRELI - ME","20.620.442/0001-48","003","Caixa Econômica Federal",1959,"00000620-5","SIM",0,0,0,0,0,0]
[null,"Aguardar Transferência",null,null,null,null,"Auditoria Complementar","CONVESTE AUDFILES SERVICOS FINANCEIROS LTDA","29.758.816/0001-60",341,"Itaú Unibanco S.A.",6630,"43542-5","N/A",27000,0.1115,30388.294879009569,6.1499999999999999E-2,1868.8801350590884,28519.414743950481]
[null,"Aguardar Transferência",null,null,null,null,"Auditoria Financeira","CONVESTE AUDFILES SERVICOS FINANCEIROS LTDA","29.758.816/0001-60",341,"Itaú Unibanco S.A.",6630,"43542-5","N/A",0,0.1115,0,6.1499999999999999E-2,0,0]
[null,"Aguardar Transferência",null,null,null,null,"Implantação","CONVESTE AUDFILES SERVICOS FINANCEIROS LTDA","29.758.816/0001-60",341,"Itaú Unibanco S.A.",6630,"43542-5","N/A",0,0.1115,0,6.1499999999999999E-2,0,0]
[null,"Aguardar Transferência",null,null,null,null,"Agente Fiduciário","SIMPLIFIC PAVARINI DISTRIBUIDORA DE TÍTULOS E VALORES MOBILIÁRIOS LTDA.","15.227.994/0001-50",237,"Banco Bradesco S.A.","3428-2","714.443-1","N/A",18000,9.6500000000000002E-2,19922.523519645823,6.1499999999999999E-2,1225.2351964582181,18697.288323187604]
[null,"Aguardar Transferência",null,null,null,null,"Agente Custodiante","SIMPLIFIC PAVARINI DISTRIBUIDORA DE TÍTULOS E VALORES MOBILIÁRIOS LTDA.","15.227.994/0001-50",237,"Banco Bradesco S.A.","3428-2","714.443-1","N/A",4000,9.6500000000000002E-2,4427.227448810183,6.1499999999999999E-2,272.27448810182625,4154.9529607083568]
[null,"Aguardar Transferência",null,null,null,null,"Agente Registrador CCI","SIMPLIFIC PAVARINI DISTRIBUIDORA DE TÍTULOS E VALORES MOBILIÁRIOS LTDA.","15.227.994/0001-50",237,"Banco Bradesco S.A.","3428-2","714.443-1","N/A",30240,9.6500000000000002E-2,33469.839513004983,6.1499999999999999E-2,2058.3951300498065,31411.444382955178]
[null,"Provisão de Despesas ",null,null,null,null,"Registro CCI B3 (Débito Automático)","Forte Securitizadora S/A","12.979.898/0001-70",null,null,null,null,null,null,null,null,null,0,0]
[null,"Provisão de Despesas ",null,null,null,null,"Registro CRI B3 (Débito Automático)","Forte Securitizadora S/A","12.979.898/0001-70",null,null,null,null,null,null,null,null,null,0,8555]
[null,"Provisão de Despesas ",null,null,null,null,"Custos Mov. CRI/CCI B3 (Estimado-Deb. Aut.)","Forte Securitizadora S/A","12.979.898/0001-70",null,null,null,null,null,null,null,null,null,0,0]
[null,"Provisão de Despesas ",null,null,null,null,"Análise B3","Forte Securitizadora S/A","12.979.898/0001-70",null,null,null,null,null,null,null,null,null,{"$f":"+R33*Q33","v":0},0]
[null,"Provisão de Despesas ",null,null,null,null,"Taxa de Registro - Anbima","Forte Securitizadora S/A","12.979.898/0001-70",null,null,null,null,null,null,null,null,null,{"$f":"+R34*Q34","v":0},1600]
[null,"Provisão de Despesas ",null,null,null,null,"Rating","Forte Securitizadora S/A","12.979.898/0001-70",null,null,null,null,null,null,null,null,null,{"$f":"+R35*Q35","v":0},26660]
[null,null,null,null,null,null,"Retenção de Impostos sobre NFs",null,null,null,null,null,null,null,null,null,null,null,null,{"$f":"SUM(T37:T46)","v":29235.702225977322}]
[null,"Retenção de Impostos",null,null,null,null,"Imposto - TForte Participação Ltda","TForte Participação Ltda","21.567.223/0001-05",null,null,null,null,null,null,null,null,null,null,{"$f":"SUMIF($I$15:$I$35,I37,$S$15:$S$35)","v":23810.917276308384}]
[null,"Retenção de Impostos",null,null,null,null,"Imposto -  Originador",0,0,null,null,null,null,null,null,null,null,null,null,{"$f":"SUMIF($I$15:$I$34,I38,$S$15:$S$34)","v":0}]
[null,"Retenção de Impostos",null,null,null,null,"Imposto - Assessor Legal XP","","",null,null,null,null,null,null,null,null,null,null,0]
[null,"Retenção de Impostos",null,null,null,null,"Imposto - Assessor Legal","","",null,null,null,null,null,null,null,null,null,null,0]
[null,"Retenção de Impostos",null,null,null,null,"Imposto - Assessor Legal","","",null,null,null,null,null,null,null,null,null,null,0]
[null,"Retenção de Impostos",null,null,null,null,"Imposto - Coordenador Líder","TERRA INVESTIMENTOS DTVM LTDA.","03.751.794/0001-13",null,null,null,null,null,null,null,null,null,null,0]
[null,"Retenção de Impostos",null,null,null,null,"Imposto - Engenharia","HARCA ENGENHARIA EIRELI - ME","20.620.442/0001-48",null,null,null,null,null,null,null,null,null,null,0]
[null,"Retenção de Impostos",null,null,null,null,"Imposto - Auditoria","CONVESTE AUDFILES SERVICOS FINANCEIROS LTDA","29.758.816/0001-60",null,null,null,null,null,null,null,null,null,null,1868.8801350590884]
[null,"Retenção de Impostos",null,null,null,null,"Imposto - Agente Fiduciário","SIMPLIFIC PAVARINI DISTRIBUIDORA DE TÍTULOS E VALORES MOBILIÁRIOS LTDA.","15.227.994/0001-50",null,null,null,null,null,null,null,null,null,null,3555.9048146098507,null,null,null,null,"Integralização"]
[null,"Retenção de Impostos",null,null,null,null,"Imposto - Agente Custodiante",0,0,null,null,null,null,null,null,null,null,null,null,0,null,null,null,null,"Integralização"]
[null,"Transferência",null,null,null,null,"Reembolso Despesas","Forte Securitizadora S/A","12.979.898/0001-70",341,"Itaú Unibanco S.A.","0869","13447-8",null,null,null,null,null,null,0]
[null,"Transferência",null,null,null,null,"Retenção de PMT","Forte Securitizadora S/A","12.979.898/0001-70",237,"Banco Bradesco S.A.",3391,"7802-6",null,null,null,null,null,null,0]
[null,"Transferência",null,null,null,null,"Quitação de Dividas","Forte Securitizadora S/A","12.979.898/0001-70",237,"Banco Bradesco S.A.",3391,"7802-6",null,null,null,null,null,null,0]
[null,"Transferência",null,null,null,null,"Fundo de Juros","Forte Securitizadora S/A","12.979.898/0001-70",237,"Banco Bradesco S.A.",3391,"7802-6",null,null,null,null,null,null,0]
[null,"Transferência",null,null,null,null,"Fundo de Concessão","Forte Securitizadora S/A","12.979.898/0001-70",237,"Banco Bradesco S.A.",3391,"7802-6",null,null,null,null,null,null,0]
[null,"Transferência",null,null,null,null,"Fundo de Despesa","Forte Securitizadora S/A","12.979.898/0001-70",237,"Banco Bradesco S.A.",3391,"7802-6",null,null,null,null,null,null,0]
[null,"Transferência",null,null,null,null,"Fundo de Reserva","Forte Securitizadora S/A","12.979.898/0001-70",237,"Banco Bradesco S.A.",3391,"7802-6",null,null,null,null,null,null,446731.45]
[null,"Transferência",null,null,null,null,"Fundo de Obra","Forte Securitizadora S/A","12.979.898/0001-70",237,"Banco Bradesco S.A.",3391,"7802-6",null,null,null,null,null,null,0]
[null,"Transferência",null,null,null,null,"Livre Destinação","PARQUE DOS GIRASSÓIS EMPREENDIMENTOS IMOBILIÁRIOS SPE LTDA.","28.073.290/0001-12",237,"Banco Bradesco S.A.",2397,"69694-3",null,null,null,null,null,null,0]
[null,"Transferência",null,null,null,null,"Livre Destinação - Por Conta e Ordem",null,null,null,null,null,null,null,null,null,null,null,null,{"$f":"-SUM(-T14,T15:T36,T47:T55)","v":20469770.052244294}]
[null,"Total Dia",null,null,null,null,null,null,null,null,null,null,null,null,null,null,null,null,null,{"$f":"-SUM(-T14,T15:T36,T47:T56)","v":0},null,null,null,null,"Reembolso Forte"]
[]
[null,"Integralização",501,"2021-02-24",1000,1470,"Integralização",null,null,null,null,null,null,null,null,null,null,null,null,{"$f":"E59*F59","v":1470000}]
[null,"Integralização",502,"2021-02-24",1144.1859717699999,630,"Integralização",null,null,null,null,null,null,null,null,null,null,null,null,{"$f":"E60*F60","v":720837.1622150999}]
[null,"Integralização","Total Dia",null,null,null,"Total Integralização",null,null,null,null,null,null,null,null,null,null,null,null,{"$f":"SUM(T59:T60)","v":2190837.1622150997}]
[null,"Transferência",null,null,null,null,"Fee Estruturação","TForte Participação Ltda","21.567.223/0001-05",341,"Itaú Unibanco S.A.","0869-8","12663-1","N/A",{"$f":"1%*T61","v":21908.371622150997},0.1115,{"$f":"O62/(1-P62)","v":24657.705821216656},6.1499999999999999E-2,{"$f":"R62*Q62","v":1516.4489080048243},{"$f":"Q62*(1-R62)","v":23141.25691321183}]
[null,"Transferência",null,null,null,null,"Taxa de Sucesso","TForte Participação Ltda","21.567.223/0001-05",341,"Itaú Unibanco S.A.","0869-8","12663-1","N/A",{"$f":"0.6%*T61","v":13145.022973290599},0.1115,14794.623492729994,6.1499999999999999E-2,{"$f":"R63*Q63","v":909.8693448028946},13884.754147927099]
[null,null,null,null,null,null,"Retenção de Impostos sobre NFs",null,null,null,null,null,null,null,null,null,null,null,null,{"$f":"SUM(T65:T65)","v":2426.3182528077186}]
[null,"Retenção de Impostos",null,null,null,null,"Imposto - TForte Participação Ltda","TForte Participação Ltda","21.567.223/0001-05",null,null,null,null,null,null,null,null,null,null,{"$f":"SUM(S62:S63)","v":2426.3182528077186}]
[null,"Transferência",null,null,null,null,"Fundo de Reserva","Forte Securitizadora S/A","12.979.898/0001-70",237,"Banco Bradesco S.A.",3391,"7802-6",null,null,null,null,null,null,50070.79]
[null,"Transferência",null,null,null,null,"Livre Destinação","PARQUE DOS GIRASSÓIS EMPREENDIMENTOS IMOBILIÁRIOS SPE LTDA.","28.073.290/0001-12",237,"Banco Bradesco S.A.",2397,"69694-3",null,null,null,null,null,null,{"$f":"T61-SUM(T62:T64,T66)","v":2101314.0429011532}]
[null,"Total Dia",null,null,null,null,null,null,null,null,null,null,null,null,null,null,null,null,null,{"$f":"-SUM(-T61,T62:T64,T66:T67)","v":0}]
[]
[null,"Integralização",501,"2021-09-21",971.87941914999999,1530,"Integralização",null,null,null,null,null,null,null,null,null,null,null,null,{"$f":"E70*F70","v":1486975.5112995}]
[null,"Integralização",502,"2021-09-21",978.32257129000004,655,"Integralização",null,null,null,null,null,null,null,null,null,null,null,null,{"$f":"E71*F71","v":640801.28419495001}]
[null,"Integralização","Total Dia",null,null,null,"Total Integralização",null,null,null,null,null,null,null,null,null,null,null,null,{"$f":"SUM(T70:T71)","v":2127776.7954944503}]
[null,"Transferência",null,null,null,null,"Fee Estruturação","TForte Participação Ltda","21.567.223/0001-05",341,"Itaú Unibanco S.A.","0869-8","12663-1","N/A",{"$f":"1%*T72","v":21277.767954944502},0.1115,{"$f":"O73/(1-P73)","v":23947.966184518293},6.1499999999999999E-2,{"$f":"R73*Q73","v":1472.7999203478751},{"$f":"Q73*(1-R73)","v":22475.166264170417}]
[null,"Transferência",null,null,null,null,"Taxa de Sucesso","TForte Participação Ltda","21.567.223/0001-05",341,"Itaú Unibanco S.A.","0869-8","12663-1","N/A",{"$f":"0.6%*T72","v":12766.660772966701},0.1115,14368.779710710976,6.1499999999999999E-2,{"$f":"R74*Q74","v":883.67995220872501},13485.099758502251]
[null,null,null,null,null,null,"Retenção de Impostos sobre NFs",null,null,null,null,null,null,null,null,null,null,null,null,{"$f":"SUM(T76:T76)","v":2356.4798725566002}]
[null,"Retenção de Impostos",null,null,null,null,"Imposto - TForte Participação Ltda","TForte Participação Ltda","21.567.223/0001-05",null,null,null,null,null,null,null,null,null,null,{"$f":"SUM(S73:S74)","v":2356.4798725566002}]
[null,"Transferência",null,null,null,null,"Fundo de Reserva","Forte Securitizadora S/A","12.979.898/0001-70",237,"Banco Bradesco S.A.",3391,"7802-6",null,null,null,null,null,null,55955.44]
[null,"Transferência",null,null,null,null,"Retenção","Forte Securitizadora S/A","12.979.898/0001-70",237,"Banco Bradesco S.A.",3391,"7802-6",null,null,null,null,null,null,27397.17]
[null,"Transferência",null,null,null,null,"Livre Destinação","PARQUE DOS GIRASSÓIS EMPREENDIMENTOS IMOBILIÁRIOS SPE LTDA.","28.073.290/0001-12",237,"Banco Bradesco S.A.",2397,"69694-3",null,null,null,null,null,null,{"$f":"T72-SUM(T73:T75,T77,T78)","v":2006107.4395992211}]
[null,"Total Dia",null,null,null,null,null,null,null,null,null,null,null,null,null,null,null,null,null,{"$f":"-SUM(-T72,T73:T75,T77:T79)","v":0}]